[Event "4th Memorial Warakomska-B 2020"]
[Site "Suwalki"]
[Date "2020.08.07"]
[Round "1.4"]
[White "Sapeta, Robert"]
[Black "Borowik, Monika"]
[Result "1-0"]
[ECO "B07"]
[WhiteElo "1895"]
[BlackElo "1286"]
[Annotator "NA RC"]
[PlyCount "55"]
[EventDate "2020.08.06"]
[EventType "swiss"]
[EventCountry "POL"]
[SourceTitle "playchess.com"]
[Source "ChessBase"]
[SourceQuality "1"]
[TimeControl "40/5400+30:1800+30"]

1. d4 {[%emt 0:00:00]} Nf6 {[%emt 0:00:00]} 2. Nc3 {[%emt 0:00:00]} g6 {[%emt 0:01:51]} 3. e4 {[%emt 0:00:00]} d6 {[%emt 0:01:22]} 4. Be2 {[%emt 0:00:27]} Bg7 {[%emt 0:02:35]} 5. g4 {[%emt 0:01:09]} Nbd7 {[%emt 0:06:04]} 6. f4 {[%emt 0:01:11]} b6 {[%emt 0:07:35]} 7. e5 {[%emt 0:07:42]} Ng8 {[%emt 0:06:07]} 8. Bf3 {[%emt 0:09:49]} Rb8 {[%emt 0:06:06]} 9. Ne4 {[%emt 0:16:38]} d5 {[%emt 0:06:34]} 10. Ng3 {[%emt 0:04:09]} e6 {[%emt 0:06:15]} 11. h4 {[%emt 0:00:20]} f5 {[%emt 0:06:12]} 12. gxf5 {[%emt 0:02:32]} exf5 {[%emt 0:09:03]} 13. Bxd5 {[%emt 0:03:13]} Ne7 {[%emt 0:03:51]} 14. Bf3 {[%emt 0:01:52]} Bb7 {[%emt 0:04:07]} 15. h5 {[%emt 0:05:16]} Bxf3 {[%emt 0:02:58]} 16. Nxf3 {[%emt 0:00:28]} Bh6 {[%emt 0:06:15]} 17. hxg6 {[%emt 0:18:36]} hxg6 {[%emt 0:01:49]} 18. c4 {[%emt 0:01:18]} b5 {[%emt 0:04:14]} 19. b3 {[%emt 0:01:17]} Nb6 {[%emt 0:04:06]} 20. Qd3 {[%emt 0:01:20]} bxc4 {[%emt 0:02:07]} 21. bxc4 {[%emt 0:00:13]} Nc6 {[%emt 0:02:32]} 22. Ba3 {[%emt 0:05:18]} Kd7 {[%emt 0:03:47]} 23. d5 {[%emt 0:02:08]} Kc8 {[%emt 0:01:13]} 24. Ke2 {[%emt 0:08:31]} Na5 {[%emt 0:01:51]} 25. Nd2 {[%emt 0:02:23]} Bxf4 {[%emt 0:01:26]} 26. Nxf5 {[%emt 0:00:43]} Bxe5 {[%emt 0:02:18]} 27. Ne7+ {[%emt 0:00:35]} Kb7 {[%emt 0:00:37]} 28. Rab1 1-0

[Event "4th Memorial Warakomska-B 2020"]
[Site "Suwalki"]
[Date "2020.08.07"]
[Round "1.5"]
[White "Szewczyk, Malwina"]
[Black "Rak, Tomasz"]
[Result "1-0"]
[ECO "A45"]
[WhiteElo "1323"]
[BlackElo "1879"]
[Annotator "NA RC"]
[PlyCount "111"]
[EventDate "2020.08.06"]
[EventType "swiss"]
[EventCountry "POL"]
[SourceTitle "playchess.com"]
[Source "ChessBase"]
[SourceQuality "1"]
[TimeControl "40/5400+30:1800+30"]

1. d4 {[%emt 0:00:00]} Nf6 {[%emt 0:00:00]} 2. e3 {[%emt 0:00:00]} d6 {[%emt 0:00:07]} 3. Bd3 {[%emt 0:00:37]} e5 {[%emt 0:01:57]} 4. Nd2 {[%emt 0:03:05]} Qe7 {[%emt 0:05:15]} 5. dxe5 {[%emt 0:06:52]} dxe5 {[%emt 0:00:08]} 6. e4 {[%emt 0:03:22]} Be6 {[%emt 0:08:14]} 7. Ngf3 {[%emt 0:00:34]} Nbd7 {[%emt 0:02:41]} 8. b3 {[%emt 0:04:17]} O-O-O {[%emt 0:01:29]} 9. Bb2 {[%emt 0:00:41]} Nc5 {[%emt 0:04:31]} 10. Nxe5 {[%emt 0:01:52]} Nfxe4 {[%emt 0:02:07]} 11. Nxe4 {[%emt 0:00:43]} Nxe4 {[%emt 0:00:08]} 12. O-O {[%emt 0:01:58]} f6 {[%emt 0:01:51]} 13. Qe2 {[%emt 0:03:12]} Nc5 {[%emt 0:01:22]} 14. Nc4 {[%emt 0:00:31]} Nxd3 {[%emt 0:01:28]} 15. cxd3 {[%emt 0:00:14]} Qd7 {[%emt 0:03:21]} 16. d4 {[%emt 0:00:59]} Kb8 {[%emt 0:03:02]} 17. a3 {[%emt 0:02:48]} Bd5 {[%emt 0:02:22]} 18. Rfe1 {[%emt 0:00:38]} h5 {[%emt 0:01:46]} 19. Rac1 {[%emt 0:03:10]} h4 {[%emt 0:01:28]} 20. h3 {[%emt 0:00:22]} Rh6 {[%emt 0:01:19]} 21. Ne3 {[%emt 0:02:08]} Bxb3 {[%emt 0:04:17]} 22. Ng4 {[%emt 0:00:48]} Rh8 {[%emt 0:01:12]} 23. Rc3 {[%emt 0:02:18]} Bf7 {[%emt 0:01:19]} 24. Re3 {[%emt 0:01:38]} Bd6 {[%emt 0:01:17]} 25. Qc2 {[%emt 0:02:58]} Rde8 {[%emt 0:02:45]} 26. Rxe8+ {[%emt 0:05:49]} Rxe8 {[%emt 0:00:06]} 27. Rxe8+ {[%emt 0:00:18]} Qxe8 {[%emt 0:00:05]} 28. Ne3 {[%emt 0:00:17]} g6 {[%emt 0:02:26]} 29. d5 {[%emt 0:00:28]} f5 {[%emt 0:00:41]} 30. Qd1 {[%emt 0:01:49]} Qe4 {[%emt 0:00:58]} 31. Bc1 {[%emt 0:00:35]} f4 {[%emt 0:02:02]} 32. f3 {[%emt 0:00:25]} Qb1 {[%emt 0:04:34]} 33. Nc4 {[%emt 0:01:04]} Bc5+ {[%emt 0:00:59]} 34. Kh2 {[%emt 0:00:19]} Qf5 {[%emt 0:07:15]} 35. d6 {[%emt 0:02:54]} Be6 {[%emt 0:01:08]} 36. Bb2 {[%emt 0:04:37]} Qg5 {[%emt 0:10:35]} 37. d7 {[%emt 0:04:48]} Bxd7 {[%emt 0:01:33]} 38. Bf6 {[%emt 0:02:32]} Qg3+ {[%emt 0:05:29]} 39. Kh1 {[%emt 0:00:07]} Bxh3 {[%emt 0:01:00]} 40. Qd8+ {[%emt 0:00:00]} Bc8 {[%emt 0:00:00]} 41. Bxh4 {[%emt 0:02:09]} b5 {[%emt 0:03:02]} 42. Bxg3 {[%emt 0:03:13]} fxg3 {[%emt 0:00:34]} 43. Ne5 {[%emt 0:01:11]} Bf2 {[%emt 0:02:50]} 44. Nxg6 {[%emt 0:01:52]} Kb7 {[%emt 0:00:39]} 45. Qd5+ {[%emt 0:00:38]} c6 {[%emt 0:01:20]} 46. Qf7+ {[%emt 0:01:06]} Kb6 {[%emt 0:00:34]} 47. Ne7 {[%emt 0:01:10]} Bb7 {[%emt 0:00:40]} 48. Qe6 {[%emt 0:01:06]} a5 {[%emt 0:01:07]} 49. Nd5+ {[%emt 0:01:00]} Ka7 {[%emt 0:03:01]} 50. Ne7 {[%emt 0:02:21]} Kb6 {[%emt 0:00:34]} 51. f4 {[%emt 0:00:50]} Bc5 {[%emt 0:03:01]} 52. Qe5 {[%emt 0:04:29]} Bxa3 {[%emt 0:00:40]} 53. f5 {[%emt 0:01:18]} Bc1 {[%emt 0:04:18]} 54. f6 {[%emt 0:00:50]} a4 {[%emt 0:01:22]} 55. f7 {[%emt 0:00:44]} Bh6 {[%emt 0:00:35]} 56. Qh8 {[%emt 0:02:08]} 1-0

[Event "4th Memorial Warakomska-B 2020"]
[Site "Suwalki"]
[Date "2020.08.07"]
[Round "1.7"]
[White "Pietryk, Joanna"]
[Black "Widelski, Kacper"]
[Result "0-1"]
[ECO "B39"]
[WhiteElo "1329"]
[BlackElo "1879"]
[Annotator "NA RC"]
[PlyCount "80"]
[EventDate "2020.08.06"]
[EventType "swiss"]
[EventCountry "POL"]
[SourceTitle "playchess.com"]
[Source "ChessBase"]
[SourceQuality "1"]
[TimeControl "40/5400+30:1800+30"]

1. e4 {[%emt 0:00:00]} c5 {[%emt 0:00:16]} 2. Nf3 {[%emt 0:00:00]} g6 {[%emt 0:00:59]} 3. d4 {[%emt 0:01:02]} cxd4 {[%emt 0:00:14]} 4. Nxd4 {[%emt 0:00:18]} Bg7 {[%emt 0:00:10]} 5. c4 {[%emt 0:01:47]} Nc6 {[%emt 0:00:11]} 6. Be3 {[%emt 0:01:48]} Nf6 {[%emt 0:00:11]} 7. Nc3 {[%emt 0:00:25]} Ng4 {[%emt 0:00:19]} 8. Qxg4 {[%emt 0:01:29]} Nxd4 {[%emt 0:00:15]} 9. Qd1 {[%emt 0:02:07]} Ne6 {[%emt 0:00:07]} 10. Be2 {[%emt 0:08:14]} Qa5 {[%emt 0:01:48]} 11. Qd2 {[%emt 0:05:24]} b6 {[%emt 0:04:54]} 12. O-O {[%emt 0:03:00]} Bb7 {[%emt 0:02:17]} 13. Bf3 {[%emt 0:05:47]} Rc8 {[%emt 0:12:15]} 14. Qd3 {[%emt 0:06:26]} Bxc3 {[%emt 0:08:15]} 15. bxc3 {[%emt 0:03:09]} Ba6 {[%emt 0:00:58]} 16. Rfd1 {[%emt 0:05:14]} d6 {[%emt 0:04:39]} 17. Bd4 {[%emt 0:13:19]} Bxc4 {[%emt 0:02:45]} 18. Qd2 {[%emt 0:01:23]} Nxd4 {[%emt 0:02:01]} 19. Qxd4 {[%emt 0:03:16]} O-O {[%emt 0:05:11]} 20. Bg4 {[%emt 0:05:19]} Rc7 {[%emt 0:01:08]} 21. Kh1 {[%emt 0:04:06]} Ba6 {[%emt 0:02:34]} 22. Rdc1 {[%emt 0:01:02]} h5 {[%emt 0:00:59]} 23. Bh3 {[%emt 0:01:33]} Bc8 {[%emt 0:00:07]} 24. Rc2 {[%emt 0:04:26]} Bxh3 {[%emt 0:00:16]} 25. gxh3 {[%emt 0:00:17]} Rfc8 {[%emt 0:00:10]} 26. Rac1 {[%emt 0:00:27]} Rc4 {[%emt 0:00:49]} 27. Qe3 {[%emt 0:02:53]} Qe5 {[%emt 0:00:04]} 28. f3 {[%emt 0:00:37]} d5 {[%emt 0:00:09]} 29. Qd3 {[%emt 0:04:47]} dxe4 {[%emt 0:01:01]} 30. fxe4 {[%emt 0:00:11]} Qxe4+ {[%emt 0:01:16]} 31. Qxe4 {[%emt 0:00:12]} Rxe4 {[%emt 0:00:04]} 32. c4 {[%emt 0:01:16]} Rc5 {[%emt 0:00:07]} 33. Kg2 {[%emt 0:00:27]} f5 {[%emt 0:00:35]} 34. Kf3 {[%emt 0:00:24]} Kf7 {[%emt 0:00:05]} 35. a4 {[%emt 0:01:20]} Kf6 {[%emt 0:00:19]} 36. Rc3 {[%emt 0:01:16]} Rd4 {[%emt 0:00:20]} 37. Ke3 {[%emt 0:01:00]} e5 {[%emt 0:00:08]} 38. Kf3 {[%emt 0:00:13]} e4+ {[%emt 0:00:16]} 39. Kf4 {[%emt 0:00:21]} g5+ {[%emt 0:00:35]} 40. Ke3 {[%emt 0:00:00]} Ke5 {[%emt 0:00:00]} 0-1

[Event "4th Memorial Warakomska-B 2020"]
[Site "Suwalki"]
[Date "2020.08.07"]
[Round "1.8"]
[White "Cwiek, Ryszard"]
[Black "Gladyszewska, Kinga"]
[Result "1-0"]
[ECO "C47"]
[WhiteElo "1867"]
[BlackElo "1312"]
[Annotator "NA RC"]
[PlyCount "85"]
[EventDate "2020.08.06"]
[EventType "swiss"]
[EventCountry "POL"]
[SourceTitle "playchess.com"]
[Source "ChessBase"]
[SourceQuality "1"]
[TimeControl "40/5400+30:1800+30"]

1. e4 {[%emt 0:00:00]} e5 {[%emt 0:00:00]} 2. Nf3 {[%emt 0:00:00]} Nc6 {[%emt 0:00:00]} 3. Nc3 {[%emt 0:00:00]} Nf6 {[%emt 0:00:13]} 4. d4 {[%emt 0:00:00]} exd4 {[%emt 0:00:06]} 5. Nxd4 {[%emt 0:00:02]} Bc5 {[%emt 0:01:01]} 6. Be3 {[%emt 0:00:06]} Nxd4 {[%emt 0:01:30]} 7. Bxd4 {[%emt 0:00:07]} Bxd4 {[%emt 0:01:47]} 8. Qxd4 {[%emt 0:00:11]} d6 {[%emt 0:01:24]} 9. O-O-O {[%emt 0:22:27]} Qe7 {[%emt 0:10:41]} 10. Bb5+ {[%emt 0:00:59]} Bd7 11. Bxd7+ {[%emt 0:00:13]} Qxd7 {[%emt 0:02:21]} 12. e5 dxe5 {[%emt 0:07:56]} 13. Qxe5+ {[%emt 0:00:39]} Qe7 {[%emt 0:09:30]} 14. Rhe1 {[%emt 0:26:25]} Qxe5 {[%emt 0:00:23]} 15. Rxe5+ {[%emt 0:00:01]} Kf8 {[%emt 0:00:15]} 16. Ne4 {[%emt 0:07:42]} Nxe4 {[%emt 0:11:19]} 17. Rxe4 {[%emt 0:00:05]} Re8 {[%emt 0:00:34]} 18. Red4 {[%emt 0:00:08]} g6 {[%emt 0:00:44]} 19. Rd7 {[%emt 0:02:23]} Rc8 {[%emt 0:01:14]} 20. Re1 {[%emt 0:00:16]} Kg7 {[%emt 0:07:15]} 21. Ree7 {[%emt 0:00:15]} Rhf8 {[%emt 0:01:11]} 22. Rxc7 {[%emt 0:00:13]} Rxc7 {[%emt 0:00:06]} 23. Rxc7 {[%emt 0:00:07]} Rb8 {[%emt 0:00:04]} 24. Rc3 {[%emt 0:02:04]} a6 {[%emt 0:00:46]} 25. a4 {[%emt 0:01:52]} Re8 {[%emt 0:00:26]} 26. Re3 {[%emt 0:00:46]} Rd8 {[%emt 0:11:21]} 27. Rd3 {[%emt 0:00:10]} Re8 {[%emt 0:01:15]} 28. Kd2 {[%emt 0:00:05]} Re4 {[%emt 0:00:49]} 29. b3 {[%emt 0:00:33]} Kf6 {[%emt 0:05:01]} 30. f3 {[%emt 0:04:36]} Re6 {[%emt 0:01:21]} 31. a5 {[%emt 0:04:38]} Re7 {[%emt 0:02:05]} 32. c4 {[%emt 0:00:51]} Rc7 {[%emt 0:00:25]} 33. Re3 {[%emt 0:01:00]} Rc5 {[%emt 0:00:40]} 34. Kc3 {[%emt 0:08:16]} Rxa5 {[%emt 0:00:49]} 35. Kb4 {[%emt 0:00:33]} b6 {[%emt 0:10:23]} 36. Re2 {[%emt 0:02:43]} Rc5 {[%emt 0:04:54]} 37. Re8 {[%emt 0:01:07]} a5+ {[%emt 0:02:56]} 38. Ka4 {[%emt 0:00:17]} h5 {[%emt 0:04:55]} 39. Rb8 {[%emt 0:00:13]} Ke7 {[%emt 0:01:11]} 40. Rxb6 {[%emt 0:00:00]} Kd7 {[%emt 0:00:00]} 41. Rb5 {[%emt 0:01:01]} Kc6 {[%emt 0:00:49]} 42. Rxc5+ {[%emt 0:00:18]} Kxc5 {[%emt 0:00:11]} 43. Kxa5 {[%emt 0:00:02]} 1-0

[Event "4th Memorial Warakomska-B 2020"]
[Site "Suwalki"]
[Date "2020.08.07"]
[Round "1.9"]
[White "Krzyszkowiak, Bozena"]
[Black "Wierzbicki, Michal"]
[Result "0-1"]
[ECO "C00"]
[WhiteElo "1287"]
[BlackElo "1849"]
[Annotator "NA RC"]
[PlyCount "126"]
[EventDate "2020.08.06"]
[EventType "swiss"]
[EventCountry "POL"]
[SourceTitle "playchess.com"]
[Source "ChessBase"]
[SourceQuality "1"]
[TimeControl "40/5400+30:1800+30"]

1. e4 {[%emt 0:00:00]} e6 {[%emt 0:00:00]} 2. Nf3 {[%emt 0:00:00]} d5 {[%emt 0:00:00]} 3. exd5 {[%emt 0:00:44]} exd5 {[%emt 0:00:00]} 4. Be2 {[%emt 0:00:33]} Bd6 {[%emt 0:01:00]} 5. d4 {[%emt 0:01:13]} Ne7 {[%emt 0:04:50]} 6. O-O Bf5 7. a3 {[%emt 0:02:04]} O-O {[%emt 0:04:35]} 8. Nc3 {[%emt 0:00:18]} c6 {[%emt 0:01:59]} 9. h3 {[%emt 0:02:43]} Ng6 {[%emt 0:03:43]} 10. Bd3 {[%emt 0:01:10]} Qd7 {[%emt 0:03:47]} 11. Bxf5 {[%emt 0:01:50]} Qxf5 {[%emt 0:00:04]} 12. Re1 {[%emt 0:02:50]} Na6 {[%emt 0:01:28]} 13. Be3 {[%emt 0:00:47]} Nc7 {[%emt 0:03:17]} 14. Qd2 {[%emt 0:02:05]} b5 {[%emt 0:15:51]} 15. Rad1 {[%emt 0:00:48]} b4 {[%emt 0:03:59]} 16. axb4 {[%emt 0:01:43]} Bxb4 {[%emt 0:00:33]} 17. Qd3 {[%emt 0:00:13]} Qd7 {[%emt 0:20:35]} 18. Bd2 {[%emt 0:01:42]} Ne6 {[%emt 0:08:20]} 19. Ne2 {[%emt 0:01:56]} Bd6 {[%emt 0:02:14]} 20. c3 {[%emt 0:02:15]} Rfb8 {[%emt 0:02:12]} 21. b4 {[%emt 0:01:05]} a5 {[%emt 0:00:25]} 22. bxa5 {[%emt 0:00:59]} Rxa5 {[%emt 0:00:13]} 23. Rb1 {[%emt 0:02:54]} Rba8 {[%emt 0:01:14]} 24. c4 {[%emt 0:03:35]} Ra3 {[%emt 0:00:46]} 25. Qc2 {[%emt 0:02:55]} Ra2 {[%emt 0:14:56]} 26. Rb2 {[%emt 0:02:41]} Rxb2 {[%emt 0:01:23]} 27. Qxb2 {[%emt 0:00:02]} dxc4 {[%emt 0:00:19]} 28. Qc2 {[%emt 0:02:11]} c5 {[%emt 0:01:29]} 29. dxc5 {[%emt 0:01:19]} Bxc5 {[%emt 0:00:28]} 30. Qxc4 {[%emt 0:01:23]} Qa7 {[%emt 0:03:31]} 31. Rf1 {[%emt 0:01:12]} Rd8 {[%emt 0:00:46]} 32. Qc3 {[%emt 0:01:24]} Qa6 {[%emt 0:01:29]} 33. Nc1 {[%emt 0:02:28]} Ne7 {[%emt 0:00:32]} 34. Be3 {[%emt 0:00:44]} Nd5 {[%emt 0:00:27]} 35. Qd3 {[%emt 0:00:34]} Qxd3 {[%emt 0:00:28]} 36. Nxd3 {[%emt 0:00:02]} Bxe3 {[%emt 0:00:35]} 37. fxe3 {[%emt 0:00:47]} Nxe3 {[%emt 0:00:04]} 38. Rc1 {[%emt 0:02:02]} Rxd3 {[%emt 0:00:12]} 39. Ng5 {[%emt 0:01:02]} Rd1+ {[%emt 0:01:01]} 40. Rxd1 {[%emt 0:00:00]} Nxd1 {[%emt 0:00:00]} 41. Ne4 {[%emt 0:00:45]} Ne3 {[%emt 0:00:58]} 42. Kf2 {[%emt 0:00:11]} Nc4 {[%emt 0:00:10]} 43. Kf3 {[%emt 0:00:36]} f5 {[%emt 0:00:19]} 44. Nc3 {[%emt 0:00:38]} g5 {[%emt 0:01:39]} 45. Nd5 {[%emt 0:00:24]} Kf7 {[%emt 0:00:29]} 46. g3 {[%emt 0:01:07]} Nd4+ {[%emt 0:00:37]} 47. Kf2 {[%emt 0:00:54]} Ke6 {[%emt 0:00:12]} 48. Nc3 {[%emt 0:00:28]} Ke5 {[%emt 0:00:12]} 49. Nd1 {[%emt 0:00:53]} h5 {[%emt 0:00:46]} 50. Nc3 {[%emt 0:00:13]} Nd6 {[%emt 0:00:17]} 51. Nd1 {[%emt 0:01:10]} Ne4+ {[%emt 0:00:15]} 52. Kg2 {[%emt 0:00:57]} f4 {[%emt 0:02:54]} 53. g4 {[%emt 0:01:54]} hxg4 {[%emt 0:00:12]} 54. hxg4 {[%emt 0:00:02]} f3+ {[%emt 0:00:06]} 55. Kf1 {[%emt 0:00:33]} Ne2 {[%emt 0:00:37]} 56. Nf2 Nxf2 57. Kxf2 Kf4 58. Kf1 {[%emt 0:02:13]} Ke3 {[%emt 0:01:10]} 59. Ke1 f2+ 60. Kf1 {[%emt 0:01:30]} Ng3+ {[%emt 0:00:35]} 61. Kg2 f1=Q+ 62. Kh2 Qf3 63. Kg1 Qh1# 0-1

[Event "4th Memorial Warakomska-B 2020"]
[Site "Suwalki"]
[Date "2020.08.07"]
[Round "1.10"]
[White "Kaminski, Maciej"]
[Black "Jaszczuk, Piotr"]
[Result "1-0"]
[ECO "B42"]
[WhiteElo "1869"]
[BlackElo "1283"]
[Annotator "NA RC"]
[PlyCount "109"]
[EventDate "2020.08.06"]
[EventType "swiss"]
[EventCountry "POL"]
[SourceTitle "playchess.com"]
[Source "ChessBase"]
[SourceQuality "1"]
[TimeControl "40/5400+30:1800+30"]

1. e4 {[%emt 0:00:00]} c5 {[%emt 0:00:00]} 2. Nf3 {[%emt 0:00:00]} e6 {[%emt 0:00:00]} 3. d4 {[%emt 0:00:00]} cxd4 {[%emt 0:00:00]} 4. Nxd4 {[%emt 0:00:00]} a6 {[%emt 0:00:13]} 5. Bd3 {[%emt 0:00:14]} Nf6 {[%emt 0:00:48]} 6. O-O {[%emt 0:00:14]} Qc7 {[%emt 0:00:15]} 7. Qe2 {[%emt 0:00:10]} b5 {[%emt 0:00:47]} 8. a4 {[%emt 0:08:48]} bxa4 {[%emt 0:01:46]} 9. Rxa4 {[%emt 0:02:15]} Bb7 {[%emt 0:01:54]} 10. c4 {[%emt 0:06:03]} h5 {[%emt 0:03:16]} 11. h3 {[%emt 0:08:15]} Bc5 {[%emt 0:04:38]} 12. Nf3 {[%emt 0:18:07]} Ng4 {[%emt 0:01:22]} 13. b4 {[%emt 0:05:21]} Bd4 {[%emt 0:02:12]} 14. Bb2 {[%emt 0:01:46]} Nc6 {[%emt 0:01:50]} 15. Nc3 {[%emt 0:15:51]} Qg3 {[%emt 0:05:41]} 16. Nb5 {[%emt 0:05:10]} Bxf2+ {[%emt 0:07:43]} 17. Rxf2 {[%emt 0:02:31]} Nxf2 {[%emt 0:00:45]} 18. Qxf2 {[%emt 0:03:57]} Qxf2+ {[%emt 0:00:22]} 19. Kxf2 {[%emt 0:00:05]} axb5 {[%emt 0:00:13]} 20. Rxa8+ {[%emt 0:00:09]} Bxa8 {[%emt 0:00:11]} 21. cxb5 {[%emt 0:00:39]} Nxb4 {[%emt 0:00:32]} 22. Bb1 {[%emt 0:00:33]} O-O {[%emt 0:01:48]} 23. Nd4 {[%emt 0:04:23]} Rc8 {[%emt 0:01:22]} 24. Ke3 {[%emt 0:02:01]} d5 {[%emt 0:02:24]} 25. e5 {[%emt 0:00:36]} Rc4 {[%emt 0:04:11]} 26. g4 {[%emt 0:00:49]} hxg4 {[%emt 0:00:59]} 27. hxg4 {[%emt 0:00:01]} Kf8 {[%emt 0:01:01]} 28. g5 {[%emt 0:05:35]} g6 {[%emt 0:00:43]} 29. b6 {[%emt 0:01:50]} Nc6 {[%emt 0:07:14]} 30. Nb5 {[%emt 0:03:16]} Kg8 {[%emt 0:00:54]} 31. Bd3 {[%emt 0:02:30]} Rb4 {[%emt 0:03:00]} 32. Ba3 {[%emt 0:00:08]} Rb3 {[%emt 0:01:16]} 33. Bd6 {[%emt 0:01:24]} Na5 {[%emt 0:01:21]} 34. Kd4 {[%emt 0:00:46]} Nc6+ {[%emt 0:01:25]} 35. Ke3 {[%emt 0:00:17]} Nb4 {[%emt 0:00:39]} 36. Bxb4 {[%emt 0:00:03]} Rxb4 {[%emt 0:00:10]} 37. Kd2 {[%emt 0:00:56]} Bc6 {[%emt 0:00:41]} 38. Kc3 {[%emt 0:00:27]} Rg4 {[%emt 0:01:12]} 39. Nd6 {[%emt 0:00:45]} Rxg5 {[%emt 0:00:50]} 40. Bb5 {[%emt 0:00:00]} Ba8 {[%emt 0:00:00]} 41. Kd4 {[%emt 0:05:17]} Rg4+ {[%emt 0:03:13]} 42. Kc5 {[%emt 0:02:37]} d4 {[%emt 0:01:10]} 43. Bc6 {[%emt 0:03:47]} Bxc6 {[%emt 0:00:12]} 44. Kxc6 {[%emt 0:00:02]} d3 {[%emt 0:00:11]} 45. b7 {[%emt 0:00:27]} Rb4 {[%emt 0:00:41]} 46. Nb5 {[%emt 0:00:08]} Kg7 {[%emt 0:01:42]} 47. b8=Q {[%emt 0:00:11]} d2 {[%emt 0:00:36]} 48. Qd6 {[%emt 0:01:12]} Rb2 {[%emt 0:00:26]} 49. Na3 {[%emt 0:00:43]} Ra2 {[%emt 0:00:40]} 50. Nc4 {[%emt 0:02:48]} Ra6+ {[%emt 0:01:04]} 51. Nb6 {[%emt 0:00:03]} Ra2 {[%emt 0:00:36]} 52. Qd3 {[%emt 0:02:42]} g5 {[%emt 0:02:40]} 53. Nc4 {[%emt 0:00:09]} Ra6+ {[%emt 0:00:36]} 54. Kb5 {[%emt 0:00:09]} Ra2 {[%emt 0:00:35]} 55. Nxd2 {[%emt 0:00:07]} 1-0

[Event "4th Memorial Warakomska-B 2020"]
[Site "Suwalki"]
[Date "2020.08.07"]
[Round "1.11"]
[White "Wardziak, Ewa"]
[Black "Milewski, Karol"]
[Result "0-1"]
[ECO "C11"]
[WhiteElo "1280"]
[BlackElo "1795"]
[Annotator "NA RC"]
[PlyCount "54"]
[EventDate "2020.08.06"]
[EventType "swiss"]
[EventCountry "POL"]
[SourceTitle "playchess.com"]
[Source "ChessBase"]
[SourceQuality "1"]
[TimeControl "40/5400+30:1800+30"]

1. e4 {[%emt 0:00:00]} e6 {[%emt 0:00:00]} 2. Nf3 {[%emt 0:00:00]} d5 {[%emt 0:01:12]} 3. Nc3 {[%emt 0:00:19]} Nf6 {[%emt 0:01:01]} 4. d3 {[%emt 0:00:26]} dxe4 {[%emt 0:02:19]} 5. dxe4 {[%emt 0:01:22]} Qxd1+ {[%emt 0:00:39]} 6. Nxd1 {[%emt 0:00:03]} Nxe4 {[%emt 0:01:26]} 7. Bd3 {[%emt 0:00:31]} Nc5 {[%emt 0:02:45]} 8. Bc4 {[%emt 0:03:05]} Nc6 {[%emt 0:05:29]} 9. a3 {[%emt 0:00:53]} a6 {[%emt 0:03:49]} 10. b4 {[%emt 0:01:11]} Ne4 {[%emt 0:01:54]} 11. O-O {[%emt 0:00:32]} Be7 {[%emt 0:01:47]} 12. Re1 {[%emt 0:01:54]} Nd6 {[%emt 0:02:51]} 13. Bd3 {[%emt 0:00:48]} Bf6 {[%emt 0:02:25]} 14. Bb2 {[%emt 0:01:03]} b5 {[%emt 0:06:43]} 15. Bxf6 {[%emt 0:03:25]} gxf6 {[%emt 0:00:18]} 16. Ne3 {[%emt 0:00:39]} O-O {[%emt 0:04:32]} 17. Ng4 {[%emt 0:03:07]} Kg7 {[%emt 0:03:08]} 18. Rac1 {[%emt 0:06:20]} e5 {[%emt 0:05:11]} 19. Nd2 {[%emt 0:03:26]} Bxg4 {[%emt 0:00:21]} 20. Ne4 {[%emt 0:00:57]} Be6 {[%emt 0:05:30]} 21. Re3 {[%emt 0:01:38]} Ne7 {[%emt 0:08:18]} 22. Ng3 {[%emt 0:04:35]} Nd5 {[%emt 0:05:24]} 23. Rf3 {[%emt 0:06:32]} Bg4 {[%emt 0:02:38]} 24. Nf5+ {[%emt 0:08:22]} Nxf5 {[%emt 0:00:43]} 25. Rxf5 {[%emt 0:01:03]} Bxf5 {[%emt 0:00:09]} 26. Bxf5 {[%emt 0:00:06]} Nc3 {[%emt 0:00:26]} 27. Re1 {[%emt 0:00:24]} Rad8 {[%emt 0:00:18]} 0-1

[Event "4th Memorial Warakomska-B 2020"]
[Site "Suwalki"]
[Date "2020.08.07"]
[Round "1.12"]
[White "Milanowski, Jan"]
[Black "Palejko, Maria"]
[Result "1-0"]
[ECO "C02"]
[WhiteElo "1787"]
[BlackElo "1218"]
[Annotator "NA RC"]
[PlyCount "71"]
[EventDate "2020.08.06"]
[EventType "swiss"]
[EventCountry "POL"]
[SourceTitle "playchess.com"]
[Source "ChessBase"]
[SourceQuality "1"]
[TimeControl "40/5400+30:1800+30"]

1. e4 {[%emt 0:00:00]} c5 {[%emt 0:00:00]} 2. Nf3 {[%emt 0:01:09]} e6 {[%emt 0:00:55]} 3. c3 {[%emt 0:00:57]} Nc6 {[%emt 0:01:45]} 4. d4 {[%emt 0:01:12]} d5 {[%emt 0:02:19]} 5. e5 {[%emt 0:04:37]} f6 {[%emt 0:01:20]} 6. Bd3 {[%emt 0:03:13]} Qc7 {[%emt 0:07:12]} 7. O-O {[%emt 0:08:08]} fxe5 {[%emt 0:13:32]} 8. Nxe5 {[%emt 0:02:46]} Nf6 {[%emt 0:03:04]} 9. Nxc6 {[%emt 0:38:16]} Qxc6 {[%emt 0:04:02]} 10. Qe2 {[%emt 0:03:54]} c4 {[%emt 0:00:58]} 11. Bc2 {[%emt 0:00:08]} Bd6 {[%emt 0:02:54]} 12. Bg5 {[%emt 0:01:36]} O-O {[%emt 0:01:30]} 13. Nd2 {[%emt 0:00:19]} Bd7 {[%emt 0:10:29]} 14. Nf3 {[%emt 0:00:44]} Rae8 {[%emt 0:02:01]} 15. Ne5 {[%emt 0:00:31]} Qc7 {[%emt 0:02:41]} 16. Rae1 {[%emt 0:06:17]} b5 {[%emt 0:09:15]} 17. Bh4 {[%emt 0:04:20]} a5 {[%emt 0:03:51]} 18. Bb1 {[%emt 0:01:13]} b4 {[%emt 0:07:28]} 19. Qc2 {[%emt 0:01:09]} Bb5 {[%emt 0:03:50]} 20. Re3 {[%emt 0:03:19]} b3 {[%emt 0:02:04]} 21. Qc1 {[%emt 0:00:51]} Bxe5 {[%emt 0:02:18]} 22. Rxe5 {[%emt 0:01:11]} Ng4 {[%emt 0:00:33]} 23. Bg3 {[%emt 0:02:25]} Nxe5 {[%emt 0:00:34]} 24. Bxe5 {[%emt 0:00:02]} Qd7 {[%emt 0:01:10]} 25. a3 {[%emt 0:00:06]} a4 {[%emt 0:04:07]} 26. Qg5 {[%emt 0:00:43]} Rf7 {[%emt 0:02:01]} 27. f4 {[%emt 0:01:48]} Qe7 {[%emt 0:00:47]} 28. Qh5 {[%emt 0:00:34]} g5 {[%emt 0:01:32]} 29. Rf3 {[%emt 0:03:23]} gxf4 {[%emt 0:05:46]} 30. Rh3 {[%emt 0:01:54]} Ba6 {[%emt 0:02:12]} 31. Rh4 {[%emt 0:01:12]} Ra8 {[%emt 0:01:34]} 32. Qh6 {[%emt 0:02:30]} Ra7 {[%emt 0:01:07]} 33. Rg4+ {[%emt 0:01:02]} Rg7 {[%emt 0:00:31]} 34. Bxg7 {[%emt 0:00:43]} Kf7 {[%emt 0:00:45]} 35. Qh5+ {[%emt 0:00:23]} Kg8 {[%emt 0:00:20]} 36. Bxh7# 1-0